[Event "*** Titled Tuesday Blitz"]
[Site "Chess.com"]
[Date "2020.11.24"]
[Round "6"]
[White "Smile2005"]
[Black "TheKingDoctor"]
[Result "1-0"]
[WhiteElo "2350"]
[BlackElo "2114"]
[TimeControl "180+1"]
[EndTime "11:20:28 PST"]
[Termination "Smile2005 won on time"]

1. Nf3 {[%clk 0:02:58]} 1... Nf6 {[%clk 0:02:59.4]} 2. g3 {[%clk 0:02:58.9]}
2... g6 {[%clk 0:02:59.7]} 3. Bg2 {[%clk 0:02:57.4]} 3... Bg7 {[%clk 0:03:00.3]}
4. O-O {[%clk 0:02:58.3]} 4... O-O {[%clk 0:03:00.5]} 5. d3 {[%clk 0:02:54.9]}
5... d5 {[%clk 0:02:55.5]} 6. Nc3 {[%clk 0:02:53.7]} 6... c6 {[%clk 0:02:52.3]}
7. e4 {[%clk 0:02:52.6]} 7... dxe4 {[%clk 0:02:50.2]} 8. Nxe4 {[%clk 0:02:53]}
8... Nxe4 {[%clk 0:02:21.8]} 9. dxe4 {[%clk 0:02:53.2]} 9... Qxd1 {[%clk
0:02:22.7]} 10. Rxd1 {[%clk 0:02:52.6]} 10... e5 {[%clk 0:02:20.8]} 11. c3
{[%clk 0:02:52.8]} 11... h6 {[%clk 0:02:12.5]} 12. Be3 {[%clk 0:02:52.5]} 12...
Be6 {[%clk 0:02:10.8]} 13. Bf1 {[%clk 0:02:50.8]} 13... Nd7 {[%clk 0:02:05.4]}
14. Nd2 {[%clk 0:02:48]} 14... Rfd8 {[%clk 0:02:01.5]} 15. Bc4 {[%clk
0:02:47.7]} 15... Nf8 {[%clk 0:01:57.6]} 16. Bxe6 {[%clk 0:02:46.6]} 16... Nxe6
{[%clk 0:01:58.5]} 17. Nc4 {[%clk 0:02:46.5]} 17... Kh7 {[%clk 0:01:48.8]} 18.
f3 {[%clk 0:02:44.2]} 18... b6 {[%clk 0:01:28.8]} 19. a4 {[%clk 0:02:43]} 19...
Rxd1+ {[%clk 0:01:12.8]} 20. Rxd1 {[%clk 0:02:42.8]} 20... Rd8 {[%clk
0:01:13.7]} 21. Rxd8 {[%clk 0:02:40.2]} 21... Nxd8 {[%clk 0:01:14.6]} 22. Nxb6
{[%clk 0:02:33.6]} 22... axb6 {[%clk 0:01:13.9]} 23. Bxb6 {[%clk 0:02:33.9]}
23... Nb7 {[%clk 0:00:14.9]} 24. a5 {[%clk 0:02:33.8]} 24... Nxa5 {[%clk
0:00:12.7]} 25. Bxa5 {[%clk 0:02:29.1]} 25... Kg8 {[%clk 0:00:12.6]} 26. Kf2
{[%clk 0:02:28.7]} 26... Kf8 {[%clk 0:00:10.5]} 27. Ke3 {[%clk 0:02:29.1]} 27...
Ke7 {[%clk 0:00:11]} 28. Kd3 {[%clk 0:02:29.4]} 28... Kd6 {[%clk 0:00:10.5]} 29.
Kc4 {[%clk 0:02:29.7]} 29... Bf6 {[%clk 0:00:09.7]} 30. h3 {[%clk 0:02:29.4]}
30... h5 {[%clk 0:00:04.7]} 31. b4 {[%clk 0:02:29.3]} 31... Bg5 {[%clk
0:00:04.1]} 32. Bb6 {[%clk 0:02:28.7]} 32... Bd2 {[%clk 0:00:03.2]} 33. g4
{[%clk 0:02:26.2]} 33... hxg4 {[%clk 0:00:01.6]} 34. hxg4 {[%clk 0:02:26.2]}
34... Be1 {[%clk 0:00:01.8]} 35. Be3 {[%clk 0:02:25.6]} 1-0

[Event "*** Titled Tuesday Blitz"]
[Site "Chess.com"]
[Date "2020.11.24"]
[Round "6"]
[White "mbachez"]
[Black "RestartingChess"]
[Result "1-0"]
[WhiteElo "2432"]
[BlackElo "2545"]
[TimeControl "180+1"]
[EndTime "11:20:29 PST"]
[Termination "mbachez won by checkmate"]

1. e4 {[%clk 0:03:00.7]} 1... Nf6 {[%clk 0:03:00.1]} 2. e5 {[%clk 0:03:00.2]}
2... Nd5 {[%clk 0:03:00.4]} 3. Nc3 {[%clk 0:03:00.4]} 3... Nb6 {[%clk
0:02:59.1]} 4. d4 {[%clk 0:02:58.9]} 4... d6 {[%clk 0:02:59.7]} 5. exd6 {[%clk
0:02:56.1]} 5... exd6 {[%clk 0:03:00.6]} 6. a4 {[%clk 0:02:55.2]} 6... a5 {[%clk
0:03:00]} 7. Nf3 {[%clk 0:02:53.7]} 7... Be7 {[%clk 0:03:00.4]} 8. Bd3 {[%clk
0:02:53.7]} 8... O-O {[%clk 0:02:59.8]} 9. h3 {[%clk 0:02:53.9]} 9... Bf6 {[%clk
0:03:00.3]} 10. O-O {[%clk 0:02:53.5]} 10... Nc6 {[%clk 0:03:00.8]} 11. Re1
{[%clk 0:02:38.2]} 11... h6 {[%clk 0:02:54.7]} 12. Qe2 {[%clk 0:02:20.8]} 12...
Nb4 {[%clk 0:02:37.1]} 13. Ne4 {[%clk 0:02:11.2]} 13... Nxd3 {[%clk 0:02:34.9]}
14. Qxd3 {[%clk 0:02:10.7]} 14... Bf5 {[%clk 0:02:32.3]} 15. g4 {[%clk
0:02:05.3]} 15... Bg6 {[%clk 0:02:27.8]} 16. Bf4 {[%clk 0:01:54.4]} 16... d5
{[%clk 0:02:21.3]} 17. Nxf6+ {[%clk 0:01:52.1]} 17... Qxf6 {[%clk 0:02:22.2]}
18. Qd2 {[%clk 0:01:52]} 18... Nc4 {[%clk 0:02:20]} 19. Qc1 {[%clk 0:01:50.6]}
19... Bxc2 {[%clk 0:02:04.3]} 20. Ne5 {[%clk 0:01:41.8]} 20... Nd6 {[%clk
0:01:42.9]} 21. Nd7 {[%clk 0:01:34.8]} 21... Qxd4 {[%clk 0:01:42.4]} 22. Nxf8
{[%clk 0:01:29]} 22... Nc4 {[%clk 0:00:28.2]} 23. Qxc2 {[%clk 0:01:23.2]} 23...
Qxf4 {[%clk 0:00:27.6]} 24. Qh7+ {[%clk 0:01:22.3]} 24... Kxf8 {[%clk
0:00:26.9]} 25. Qh8# {[%clk 0:01:23.2]} 1-0

[Event "*** Titled Tuesday Blitz"]
[Site "Chess.com"]
[Date "2020.11.24"]
[Round "6"]
[White "kai_nov"]
[Black "KononenkoD"]
[Result "0-1"]
[WhiteElo "2328"]
[BlackElo "2482"]
[TimeControl "180+1"]
[EndTime "11:20:33 PST"]
[Termination "KononenkoD won by resignation"]

1. d4 {[%clk 0:03:00.9]} 1... Nf6 {[%clk 0:02:55.5]} 2. c4 {[%clk 0:03:00.5]}
2... c5 {[%clk 0:02:52.7]} 3. d5 {[%clk 0:03:00.6]} 3... b5 {[%clk 0:02:53.2]}
4. cxb5 {[%clk 0:02:59.7]} 4... a6 {[%clk 0:02:53.5]} 5. Nc3 {[%clk 0:02:58.5]}
5... g6 {[%clk 0:02:52.8]} 6. e4 {[%clk 0:02:48.8]} 6... d6 {[%clk 0:02:49.7]}
7. Nf3 {[%clk 0:02:45.6]} 7... Bg7 {[%clk 0:02:50]} 8. a4 {[%clk 0:02:39.4]}
8... O-O {[%clk 0:02:48.4]} 9. Bd2 {[%clk 0:02:35.3]} 9... e6 {[%clk 0:02:46.8]}
10. dxe6 {[%clk 0:02:31.5]} 10... fxe6 {[%clk 0:02:46]} 11. e5 {[%clk
0:02:28.7]} 11... Nd5 {[%clk 0:02:40.8]} 12. Ne4 {[%clk 0:02:21.2]} 12... dxe5
{[%clk 0:02:26]} 13. Bc4 {[%clk 0:01:43.7]} 13... axb5 {[%clk 0:02:21.9]} 14.
axb5 {[%clk 0:01:32.4]} 14... Rxa1 {[%clk 0:02:19.8]} 15. Qxa1 {[%clk
0:01:32.2]} 15... Nd7 {[%clk 0:02:19.8]} 16. b3 {[%clk 0:01:24]} 16... Qe7
{[%clk 0:02:11.9]} 17. Bg5 {[%clk 0:01:17.2]} 17... N7f6 {[%clk 0:02:02.2]} 18.
O-O {[%clk 0:01:02.2]} 18... Qc7 {[%clk 0:01:55.4]} 19. Nxf6+ {[%clk 0:00:44.8]}
19... Nxf6 {[%clk 0:01:55.2]} 20. Re1 {[%clk 0:00:17.3]} 20... e4 {[%clk
0:01:50.8]} 21. Nd2 {[%clk 0:00:17.3]} 21... Ng4 {[%clk 0:01:36.2]} 22. Nxe4
{[%clk 0:00:15.3]} 22... Qxh2+ {[%clk 0:01:31.7]} 23. Kf1 {[%clk 0:00:15.5]}
23... Bxa1 {[%clk 0:01:29.7]} 0-1

[Event "*** Titled Tuesday Blitz"]
[Site "Chess.com"]
[Date "2020.11.24"]
[Round "6"]
[White "Khnykin_Nikolay"]
[Black "orestn"]
[Result "0-1"]
[WhiteElo "2073"]
[BlackElo "2293"]
[TimeControl "180+1"]
[EndTime "11:20:35 PST"]
[Termination "orestn won by checkmate"]

1. e4 {[%clk 0:03:00.8]} 1... e5 {[%clk 0:02:59.1]} 2. Nf3 {[%clk 0:03:00.7]}
2... Nc6 {[%clk 0:02:59.6]} 3. Bc4 {[%clk 0:03:01.1]} 3... Bc5 {[%clk
0:02:59.6]} 4. O-O {[%clk 0:03:00.4]} 4... Nf6 {[%clk 0:02:59.2]} 5. b4 {[%clk
0:02:57.5]} 5... Bxb4 {[%clk 0:02:52.6]} 6. c3 {[%clk 0:02:57.5]} 6... Be7
{[%clk 0:02:49.3]} 7. d4 {[%clk 0:02:56.1]} 7... d6 {[%clk 0:02:48.1]} 8. Bg5
{[%clk 0:02:50.4]} 8... O-O {[%clk 0:02:45.4]} 9. Re1 {[%clk 0:02:47.8]} 9... h6
{[%clk 0:02:31.3]} 10. Bxf6 {[%clk 0:02:45.5]} 10... Bxf6 {[%clk 0:02:30.9]} 11.
dxe5 {[%clk 0:02:44.5]} 11... Nxe5 {[%clk 0:02:28.5]} 12. Nxe5 {[%clk
0:02:43.1]} 12... Bxe5 {[%clk 0:02:27.4]} 13. Na3 {[%clk 0:02:30.8]} 13... Bxc3
{[%clk 0:02:24.1]} 14. Qf3 {[%clk 0:02:29.5]} 14... Bxa1 {[%clk 0:02:18.7]} 15.
Rxa1 {[%clk 0:02:29.1]} 15... Be6 {[%clk 0:02:18.6]} 16. Bxe6 {[%clk 0:02:25.4]}
16... fxe6 {[%clk 0:02:18.1]} 17. Qb3 {[%clk 0:02:25.7]} 17... Qf6 {[%clk
0:02:09.4]} 18. Rf1 {[%clk 0:02:20.9]} 18... b6 {[%clk 0:02:07.2]} 19. f4 {[%clk
0:02:19.4]} 19... Qd4+ {[%clk 0:02:01.4]} 20. Kh1 {[%clk 0:02:18.1]} 20... Qxe4
{[%clk 0:02:01.8]} 21. h3 {[%clk 0:02:09.3]} 21... c5 {[%clk 0:01:45.3]} 22. Nb5
{[%clk 0:02:01.9]} 22... d5 {[%clk 0:01:39.1]} 23. Nd6 {[%clk 0:01:54.7]} 23...
Qg6 {[%clk 0:01:34.3]} 24. f5 {[%clk 0:01:50.8]} 24... exf5 {[%clk 0:01:33.3]}
25. Qxd5+ {[%clk 0:01:49.9]} 25... Kh7 {[%clk 0:01:33.3]} 26. Rxf5 {[%clk
0:01:31.3]} 26... Rxf5 {[%clk 0:01:29.6]} 27. Nxf5 {[%clk 0:01:30.6]} 27... Re8
{[%clk 0:01:22.4]} 28. Nh4 {[%clk 0:01:26.9]} 28... Qe4 {[%clk 0:01:19.7]} 29.
Qh5 {[%clk 0:01:21.7]} 29... Re5 {[%clk 0:01:16.2]} 30. Qf7 {[%clk 0:01:17.8]}
30... Qxh4 {[%clk 0:01:13.7]} 31. Qc7 {[%clk 0:01:08]} 31... Qe4 {[%clk
0:01:11.5]} 32. Kh2 {[%clk 0:01:05.5]} 32... Qf4+ {[%clk 0:01:11]} 33. g3 {[%clk
0:01:01.2]} 33... Re2+ {[%clk 0:01:10.6]} 34. Kg1 {[%clk 0:01:00.8]} 34... Qf2+
{[%clk 0:01:09.8]} 35. Kh1 {[%clk 0:00:59.7]} 35... Qg2# {[%clk 0:01:09]} 0-1

[Event "*** Titled Tuesday Blitz"]
[Site "Chess.com"]
[Date "2020.11.24"]
[Round "6"]
[White "Isajevsky_Anton"]
[Black "Omk124"]
[Result "1-0"]
[WhiteElo "2578"]
[BlackElo "2349"]
[TimeControl "180+1"]
[EndTime "11:20:42 PST"]
[Termination "Isajevsky_Anton won by resignation"]

1. c4 {[%clk 0:02:49.9]} 1... Nf6 {[%clk 0:02:59.9]} 2. Nc3 {[%clk 0:02:49.4]}
2... g6 {[%clk 0:03:00.6]} 3. g3 {[%clk 0:02:44.6]} 3... Bg7 {[%clk 0:03:00.8]}
4. Bg2 {[%clk 0:02:43.4]} 4... O-O {[%clk 0:03:01.1]} 5. e3 {[%clk 0:02:43]}
5... d6 {[%clk 0:03:01.7]} 6. Nge2 {[%clk 0:02:41.2]} 6... e5 {[%clk 0:03:01.8]}
7. O-O {[%clk 0:02:41.1]} 7... c6 {[%clk 0:03:01.4]} 8. d4 {[%clk 0:02:39.6]}
8... Nbd7 {[%clk 0:03:00.7]} 9. b3 {[%clk 0:02:32.2]} 9... Re8 {[%clk
0:02:59.8]} 10. Qc2 {[%clk 0:02:28.6]} 10... Nf8 {[%clk 0:02:59]} 11. Ba3 {[%clk
0:02:24.2]} 11... Bf5 {[%clk 0:02:58.5]} 12. e4 {[%clk 0:02:19.6]} 12... exd4
{[%clk 0:02:51.6]} 13. exf5 {[%clk 0:02:19.5]} 13... dxc3 {[%clk 0:02:51.2]} 14.
Nxc3 {[%clk 0:02:20.4]} 14... Qa5 {[%clk 0:02:43.1]} 15. Bxd6 {[%clk 0:02:16.2]}
15... Qxf5 {[%clk 0:02:42.7]} 16. Qxf5 {[%clk 0:02:15.3]} 16... gxf5 {[%clk
0:02:43.6]} 17. Rad1 {[%clk 0:02:09.3]} 17... Ne6 {[%clk 0:02:37.5]} 18. Rfe1
{[%clk 0:01:41.1]} 18... Rad8 {[%clk 0:02:36.4]} 19. c5 {[%clk 0:01:38.1]} 19...
Nd7 {[%clk 0:02:30.7]} 20. Na4 {[%clk 0:01:34]} 20... Nd4 {[%clk 0:02:29.1]} 21.
Rxe8+ {[%clk 0:01:24.9]} 21... Rxe8 {[%clk 0:02:30]} 22. Kf1 {[%clk 0:01:25.4]}
22... Nb5 {[%clk 0:02:22.5]} 23. Bf4 {[%clk 0:01:22.8]} 23... Bd4 {[%clk
0:02:18.2]} 24. Bh3 {[%clk 0:01:17.9]} 24... Nxc5 {[%clk 0:02:14]} 25. Rxd4
{[%clk 0:01:16.8]} 25... Nxd4 {[%clk 0:01:59.6]} 26. Nxc5 {[%clk 0:01:17]} 26...
b6 {[%clk 0:02:00.5]} 27. Nd7 {[%clk 0:01:12.5]} 27... Rd8 {[%clk 0:01:57.1]}
28. Nf6+ {[%clk 0:01:05.5]} 28... Kg7 {[%clk 0:01:57.5]} 29. Bg5 {[%clk
0:00:28.6]} 29... Ra8 {[%clk 0:01:45.7]} 30. Nd7 {[%clk 0:00:26.1]} 30... Kg6
{[%clk 0:01:41.9]} 31. Be3 {[%clk 0:00:25.8]} 31... Ne6 {[%clk 0:01:41.4]} 32.
Ne5+ {[%clk 0:00:23.4]} 32... Kf6 {[%clk 0:01:41.9]} 33. Nxc6 {[%clk 0:00:24.3]}
33... Rc8 {[%clk 0:01:42.4]} 34. Nd4 {[%clk 0:00:24.5]} 34... Rc2 {[%clk
0:01:39.4]} 35. Nxc2 {[%clk 0:00:24.3]} 1-0

[Event "*** Titled Tuesday Blitz"]
[Site "Chess.com"]
[Date "2020.11.24"]
[Round "6"]
[White "wisdomboy"]
[Black "Chessbard1972"]
[Result "1-0"]
[WhiteElo "2167"]
[BlackElo "2317"]
[TimeControl "180+1"]
[EndTime "11:20:42 PST"]
[Termination "wisdomboy won by resignation"]

1. d4 {[%clk 0:03:00.9]} 1... Nf6 {[%clk 0:02:58]} 2. c4 {[%clk 0:03:01.3]} 2...
g6 {[%clk 0:02:57.3]} 3. f3 {[%clk 0:03:01.7]} 3... Bg7 {[%clk 0:02:56.8]} 4. e4
{[%clk 0:03:01.7]} 4... d6 {[%clk 0:02:57.5]} 5. Nc3 {[%clk 0:03:01.9]} 5... O-O
{[%clk 0:02:58.1]} 6. Be3 {[%clk 0:03:02.5]} 6... c5 {[%clk 0:02:57.1]} 7. dxc5
{[%clk 0:02:59]} 7... dxc5 {[%clk 0:02:53.4]} 8. Qxd8 {[%clk 0:02:59.5]} 8...
Rxd8 {[%clk 0:02:52.9]} 9. Bxc5 {[%clk 0:03:00.4]} 9... Nc6 {[%clk 0:02:45.4]}
10. Be3 {[%clk 0:03:00.3]} 10... Be6 {[%clk 0:02:30.8]} 11. Rc1 {[%clk
0:02:59.9]} 11... Ne5 {[%clk 0:02:27.9]} 12. Nd5 {[%clk 0:02:53.9]} 12... Bxd5
{[%clk 0:02:23]} 13. cxd5 {[%clk 0:02:54.8]} 13... e6 {[%clk 0:02:21.1]} 14.
dxe6 {[%clk 0:02:46.4]} 14... fxe6 {[%clk 0:02:20.9]} 15. Nh3 {[%clk 0:02:44.2]}
15... Nd3+ {[%clk 0:02:17.6]} 16. Bxd3 {[%clk 0:02:43.7]} 16... Rxd3 {[%clk
0:02:17.5]} 17. Ke2 {[%clk 0:02:44.1]} 17... Rd7 {[%clk 0:02:11]} 18. Rhd1
{[%clk 0:02:43.7]} 18... Re7 {[%clk 0:02:02.7]} 19. Nf4 {[%clk 0:02:42.1]} 19...
g5 {[%clk 0:01:57.4]} 20. Nd3 {[%clk 0:02:39.1]} 20... h6 {[%clk 0:01:56.5]} 21.
b3 {[%clk 0:02:34.2]} 21... Nh5 {[%clk 0:01:49.5]} 22. Nc5 {[%clk 0:02:24.6]}
22... b6 {[%clk 0:01:46.4]} 23. Na6 {[%clk 0:02:20.9]} 23... Nf4+ {[%clk
0:01:43]} 24. Bxf4 {[%clk 0:02:20.1]} 24... gxf4 {[%clk 0:01:42.8]} 25. Rd6
{[%clk 0:02:19.6]} 25... Be5 {[%clk 0:01:40.8]} 26. Rdc6 {[%clk 0:02:18.2]}
26... Rg7 {[%clk 0:01:35.6]} 27. Kf1 {[%clk 0:02:15.4]} 27... Rd8 {[%clk
0:01:33]} 28. Rc8 {[%clk 0:02:14.3]} 28... Rxc8 {[%clk 0:01:30.4]} 29. Rxc8+
{[%clk 0:02:15.2]} 29... Kh7 {[%clk 0:01:30.3]} 30. Re8 {[%clk 0:02:13.3]} 30...
Rg6 {[%clk 0:01:29.3]} 31. Re7+ {[%clk 0:02:13]} 31... Rg7 {[%clk 0:01:26.8]}
32. Rxe6 {[%clk 0:02:12.3]} 32... Bd4 {[%clk 0:01:27.1]} 33. Rc6 {[%clk
0:02:08.8]} 33... Be3 {[%clk 0:01:25.5]} 34. Rc7 {[%clk 0:02:08.2]} 34... b5
{[%clk 0:01:23.7]} 35. Rxg7+ {[%clk 0:02:07.4]} 35... Kxg7 {[%clk 0:01:22.8]}
36. Nc7 {[%clk 0:02:08.3]} 36... b4 {[%clk 0:01:21.9]} 37. Nd5 {[%clk
0:02:08.5]} 37... Bd2 {[%clk 0:01:20.9]} 38. Ke2 {[%clk 0:02:08.2]} 38... Bc3
{[%clk 0:01:19.1]} 39. Nxc3 {[%clk 0:02:05.4]} 39... bxc3 {[%clk 0:01:19]} 40.
Kd3 {[%clk 0:02:06.3]} 40... Kf6 {[%clk 0:01:18.1]} 41. Kxc3 {[%clk 0:02:06.6]}
41... Ke5 {[%clk 0:01:18]} 42. Kd3 {[%clk 0:02:07.2]} 42... h5 {[%clk
0:01:17.4]} 43. g3 {[%clk 0:02:06.6]} 43... a6 {[%clk 0:01:12.8]} 44. b4 {[%clk
0:02:05.5]} 44... fxg3 {[%clk 0:00:52.7]} 45. hxg3 {[%clk 0:02:06.4]} 45... Kd6
{[%clk 0:00:51.4]} 46. f4 {[%clk 0:02:06]} 46... Ke6 {[%clk 0:00:51.5]} 47. a4
{[%clk 0:02:05.9]} 47... Kd6 {[%clk 0:00:51.1]} 48. b5 {[%clk 0:02:06]} 48...
axb5 {[%clk 0:00:51.1]} 49. axb5 {[%clk 0:02:06.9]} 49... Kc5 {[%clk 0:00:48.9]}
50. f5 {[%clk 0:02:05.4]} 50... Kxb5 {[%clk 0:00:48.6]} 51. f6 {[%clk
0:02:05.6]} 51... Kc5 {[%clk 0:00:48]} 52. f7 {[%clk 0:02:05.7]} 52... Kd6
{[%clk 0:00:48.9]} 53. f8=Q+ {[%clk 0:02:06.1]} 53... Ke5 {[%clk 0:00:49.8]} 54.
Qh6 {[%clk 0:02:03.1]} 54... h4 {[%clk 0:00:50.7]} 55. Qg5+ {[%clk 0:02:03.2]}
55... Ke6 {[%clk 0:00:48.5]} 56. gxh4 {[%clk 0:02:04.1]} 56... Kd6 {[%clk
0:00:48]} 57. Kd4 {[%clk 0:02:03.2]} 57... Ke6 {[%clk 0:00:47.2]} 58. Qf5+
{[%clk 0:02:02.6]} 58... Kd6 {[%clk 0:00:46.9]} 59. Qf6+ {[%clk 0:02:01.5]} 1-0

[Event "*** Titled Tuesday Blitz"]
[Site "Chess.com"]
[Date "2020.11.24"]
[Round "6"]
[White "GM_LOADING"]
[Black "Rainmond"]
[Result "0-1"]
[WhiteElo "2491"]
[BlackElo "2782"]
[TimeControl "180+1"]
[EndTime "11:20:44 PST"]
[Termination "Rainmond won by resignation"]

1. e4 {[%clk 0:03:00.9]} 1... Nf6 {[%clk 0:02:57.2]} 2. e5 {[%clk 0:02:56.7]}
2... Nd5 {[%clk 0:02:57.3]} 3. d4 {[%clk 0:02:57.2]} 3... d6 {[%clk 0:02:57.6]}
4. Nf3 {[%clk 0:02:57.6]} 4... g6 {[%clk 0:02:51.4]} 5. Bc4 {[%clk 0:02:53.7]}
5... Nb6 {[%clk 0:02:47.6]} 6. Bb3 {[%clk 0:02:53.9]} 6... Bg7 {[%clk
0:02:47.1]} 7. O-O {[%clk 0:02:49.9]} 7... O-O {[%clk 0:02:46.6]} 8. exd6 {[%clk
0:02:42.1]} 8... cxd6 {[%clk 0:02:46.4]} 9. c3 {[%clk 0:02:41.6]} 9... Nc6
{[%clk 0:02:46.2]} 10. h3 {[%clk 0:02:41]} 10... h6 {[%clk 0:02:43.4]} 11. Bf4
{[%clk 0:02:36.1]} 11... Na5 {[%clk 0:02:38.9]} 12. Bc2 {[%clk 0:02:32.9]} 12...
Qc7 {[%clk 0:02:37]} 13. Re1 {[%clk 0:02:22.7]} 13... Nd5 {[%clk 0:02:29.6]} 14.
Bd2 {[%clk 0:02:09.6]} 14... b5 {[%clk 0:02:29.4]} 15. Na3 {[%clk 0:01:54.4]}
15... Rb8 {[%clk 0:02:28.1]} 16. Be4 {[%clk 0:01:52.8]} 16... Nf6 {[%clk
0:02:16]} 17. Bd3 {[%clk 0:01:48.4]} 17... Nc4 {[%clk 0:02:15.7]} 18. Nxc4
{[%clk 0:01:33.2]} 18... bxc4 {[%clk 0:02:15.5]} 19. Bc2 {[%clk 0:01:33.8]}
19... Rxb2 {[%clk 0:02:15.1]} 20. Qc1 {[%clk 0:01:32.3]} 20... Rxc2 {[%clk
0:02:10.1]} 21. Qxc2 {[%clk 0:01:31.7]} 21... Bf5 {[%clk 0:02:11]} 22. Qc1
{[%clk 0:01:27.2]} 22... Kh7 {[%clk 0:02:07.3]} 23. Bf4 {[%clk 0:01:19.1]} 23...
Nd5 {[%clk 0:02:06.2]} 24. Bg3 {[%clk 0:01:17]} 24... Rb8 {[%clk 0:02:04.1]} 25.
Nd2 {[%clk 0:01:05.9]} 25... Bd3 {[%clk 0:02:03]} 26. Qa3 {[%clk 0:00:41.5]}
26... f5 {[%clk 0:02:01.4]} 27. f3 {[%clk 0:00:37.5]} 27... f4 {[%clk
0:02:00.5]} 28. Bf2 {[%clk 0:00:37.5]} 28... g5 {[%clk 0:01:59.4]} 29. Ne4
{[%clk 0:00:18.7]} 29... Rb5 {[%clk 0:01:57.3]} 30. h4 {[%clk 0:00:15.3]} 30...
Kg6 {[%clk 0:01:56.6]} 31. hxg5 {[%clk 0:00:15.7]} 31... hxg5 {[%clk 0:01:57.5]}
32. Qc1 {[%clk 0:00:12]} 32... Qa5 {[%clk 0:01:56.6]} 33. Nxd6 {[%clk
0:00:10.4]} 33... exd6 {[%clk 0:01:55.7]} 34. Re6+ {[%clk 0:00:11]} 34... Bf6
{[%clk 0:01:55.3]} 0-1

[Event "*** Titled Tuesday Blitz"]
[Site "Chess.com"]
[Date "2020.11.24"]
[Round "6"]
[White "niki_2003"]
[Black "picturesquecheck"]
[Result "1/2-1/2"]
[WhiteElo "1995"]
[BlackElo "2109"]
[TimeControl "180+1"]
[EndTime "11:20:53 PST"]
[Termination "Game drawn by repetition"]

1. d4 {[%clk 0:03:00.9]} 1... Nf6 {[%clk 0:02:58.4]} 2. c4 {[%clk 0:03:01.1]}
2... e6 {[%clk 0:02:57.9]} 3. Nf3 {[%clk 0:02:59.9]} 3... d5 {[%clk 0:02:57.2]}
4. g3 {[%clk 0:02:58.7]} 4... Bb4+ {[%clk 0:02:56.3]} 5. Bd2 {[%clk 0:02:57.9]}
5... Be7 {[%clk 0:02:55.3]} 6. Bg2 {[%clk 0:02:57.6]} 6... O-O {[%clk 0:02:55]}
7. b3 {[%clk 0:02:57.8]} 7... b6 {[%clk 0:02:54.6]} 8. O-O {[%clk 0:02:57.1]}
8... Bb7 {[%clk 0:02:54.2]} 9. Nc3 {[%clk 0:02:56.7]} 9... Nbd7 {[%clk
0:02:52.9]} 10. Bf4 {[%clk 0:02:56.3]} 10... Rc8 {[%clk 0:02:51.5]} 11. Nb5
{[%clk 0:02:55.2]} 11... a6 {[%clk 0:02:49.9]} 12. Nxc7 {[%clk 0:02:50.5]} 12...
Rxc7 {[%clk 0:02:49.5]} 13. Bxc7 {[%clk 0:02:49.5]} 13... Qxc7 {[%clk
0:02:50.4]} 14. Rc1 {[%clk 0:02:49.4]} 14... Qd6 {[%clk 0:02:48.4]} 15. Nd2
{[%clk 0:02:48]} 15... Ba8 {[%clk 0:02:43.9]} 16. e3 {[%clk 0:02:41.2]} 16...
Rc8 {[%clk 0:02:42]} 17. a3 {[%clk 0:02:40.5]} 17... Ne4 {[%clk 0:02:37.8]} 18.
Nxe4 {[%clk 0:02:39.3]} 18... dxe4 {[%clk 0:02:37.4]} 19. c5 {[%clk 0:02:30.8]}
19... Qd5 {[%clk 0:02:25.3]} 20. b4 {[%clk 0:02:28.4]} 20... h6 {[%clk
0:02:22.4]} 21. Qa4 {[%clk 0:02:26.4]} 21... Qb7 {[%clk 0:02:12.8]} 22. c6
{[%clk 0:02:14.8]} 22... Rxc6 {[%clk 0:01:50.9]} 23. Bxe4 {[%clk 0:02:14.2]}
23... Nb8 {[%clk 0:01:40.2]} 24. Bxc6 {[%clk 0:02:09.2]} 24... Nxc6 {[%clk
0:01:40]} 25. Rc2 {[%clk 0:02:04.8]} 25... Nxd4 {[%clk 0:01:34.6]} 26. f3 {[%clk
0:01:47]} 26... Nxc2 {[%clk 0:01:32.4]} 27. Qxc2 {[%clk 0:01:46.4]} 27... Bf6
{[%clk 0:01:32.1]} 28. e4 {[%clk 0:01:44.2]} 28... b5 {[%clk 0:01:31.4]} 29. Kg2
{[%clk 0:01:43.2]} 29... Qc6 {[%clk 0:01:10.4]} 30. Rc1 {[%clk 0:01:33.9]} 30...
Qxc2+ {[%clk 0:00:47.2]} 31. Rxc2 {[%clk 0:01:32.8]} 31... Kh7 {[%clk
0:00:47.2]} 32. Rc8 {[%clk 0:01:27.5]} 32... Bb7 {[%clk 0:00:47.3]} 33. Rc7
{[%clk 0:01:27.2]} 33... Ba8 {[%clk 0:00:47.1]} 34. Rc8 {[%clk 0:01:25.2]} 34...
Bb7 {[%clk 0:00:46.4]} 35. Rc7 {[%clk 0:01:25.3]} 35... Ba8 {[%clk 0:00:46.5]}
36. Rc8 {[%clk 0:01:12.7]} 1/2-1/2

[Event "*** Titled Tuesday Blitz"]
[Site "Chess.com"]
[Date "2020.11.24"]
[Round "6"]
[White "GianmarcoVaR"]
[Black "smshk35"]
[Result "1-0"]
[WhiteElo "2607"]
[BlackElo "2476"]
[TimeControl "180+1"]
[EndTime "11:20:54 PST"]
[Termination "GianmarcoVaR won by resignation"]

1. d4 {[%clk 0:02:41]} 1... Nf6 {[%clk 0:02:59]} 2. Nf3 {[%clk 0:02:37.2]} 2...
g6 {[%clk 0:02:58.5]} 3. Bg5 {[%clk 0:02:37.1]} 3... Bg7 {[%clk 0:02:58.1]} 4.
Nbd2 {[%clk 0:02:37.7]} 4... d5 {[%clk 0:02:57.6]} 5. c3 {[%clk 0:02:38]} 5...
O-O {[%clk 0:02:57.2]} 6. e3 {[%clk 0:02:37.4]} 6... c5 {[%clk 0:02:56.9]} 7.
dxc5 {[%clk 0:02:30]} 7... Nbd7 {[%clk 0:02:45.1]} 8. Nb3 {[%clk 0:02:15.9]}
8... a5 {[%clk 0:02:40.6]} 9. a4 {[%clk 0:02:11.7]} 9... Qc7 {[%clk 0:02:35.5]}
10. Bxf6 {[%clk 0:02:07.1]} 10... Nxf6 {[%clk 0:02:24.6]} 11. Qd4 {[%clk
0:02:00.4]} 11... Bg4 {[%clk 0:02:16.7]} 12. Qe5 {[%clk 0:01:53]} 12... Qc8
{[%clk 0:02:10]} 13. Bb5 {[%clk 0:01:40.2]} 13... Bxf3 {[%clk 0:02:02.1]} 14.
gxf3 {[%clk 0:01:40]} 14... e6 {[%clk 0:02:01.7]} 15. h4 {[%clk 0:01:28]} 15...
Ne4 {[%clk 0:01:57.6]} 16. Qh2 {[%clk 0:01:25.6]} 16... Nxc5 {[%clk 0:01:56.3]}
17. Nxc5 {[%clk 0:01:25.8]} 17... Qxc5 {[%clk 0:01:57.2]} 18. h5 {[%clk
0:01:26.3]} 18... Bxc3+ {[%clk 0:01:41.7]} 19. Kf1 {[%clk 0:01:26.7]} 19... g5
{[%clk 0:00:58.2]} 20. Rc1 {[%clk 0:01:23.9]} 20... Be5 {[%clk 0:00:53.1]} 21.
Rxc5 {[%clk 0:01:22.8]} 21... Bxh2 {[%clk 0:00:53.2]} 22. Rxh2 {[%clk
0:01:23.1]} 22... Rfc8 {[%clk 0:00:53.3]} 23. Rxc8+ {[%clk 0:01:15]} 23... Rxc8
{[%clk 0:00:54.2]} 24. h6 {[%clk 0:01:07.7]} 24... Rc2 {[%clk 0:00:48.1]} 25.
Rg2 {[%clk 0:01:04.9]} 25... f6 {[%clk 0:00:38.6]} 26. f4 {[%clk 0:01:04.9]}
26... Rxb2 {[%clk 0:00:37.9]} 27. fxg5 {[%clk 0:01:05.2]} 27... f5 {[%clk
0:00:37.4]} 28. g6 {[%clk 0:01:04.3]} 28... hxg6 {[%clk 0:00:37.3]} 29. Rxg6+
{[%clk 0:01:04.7]} 29... Kf7 {[%clk 0:00:36.6]} 30. h7 {[%clk 0:01:04.3]} 30...
Rb1+ {[%clk 0:00:34.9]} 31. Kg2 {[%clk 0:01:03.7]} 1-0